fUST/lending_fUST_20250513
["ID","MTS","AMOUNT","RATE_DAILY","PERIOD"]
[360851871,1747075536926,-300.0,0.00014794,2]
[360851872,1747075536948,-300.0,0.00014795,2]
[360851873,1747075536972,-300.0,0.00014795,2]
[360851874,1747075536997,-300.0,0.00014795,2]
[360851875,1747075537019,-300.0,0.00014795,2]
[360851876,1747075537041,-7212.3138773,0.00014796,2]
[360851877,1747075537067,-262.21470523,0.00014796,2]
[360851878,1747075537091,-500.0,0.00014796,2]
[360851879,1747075537115,-500.0,0.00014796,2]
[360851880,1747075537140,-500.0,0.00014796,2]
[360851881,1747075537166,-500.0,0.00014796,2]
[360851882,1747075537192,-500.0,0.00014796,2]
[360851883,1747075537216,-487.70764518,0.00014796,2]
[360851884,1747075537239,-404.0,0.00014798,2]
[360851885,1747075537262,-2669.47278957,0.00014798,2]
[360851886,1747075537284,-2620.50620148,0.00014798,2]
[360851887,1747075537305,-1166.8528181,0.00014823,2]
[360851888,1747075537327,-207.4,0.00014861,2]
[360851889,1747075537349,-500.0,0.00014873,2]
[360851890,1747075537372,-500.0,0.00014873,2]
[360851891,1747075537396,-500.0,0.00014873,2]
[360851892,1747075537417,-500.0,0.00014873,2]
[360851893,1747075537441,-500.0,0.00014873,2]
[360851894,1747075537464,-500.0,0.00014873,2]
[360851895,1747075537487,-500.0,0.00014873,2]
[360851896,1747075537512,-500.0,0.00014873,2]
[360851897,1747075537534,-500.0,0.00014873,2]
[360851898,1747075537557,-500.0,0.00014873,2]
[360851899,1747075537580,-500.0,0.00014897,2]
[360851900,1747075537605,-431.37315076,0.00014897,2]
[360851901,1747075537628,-361.05084953,0.00014897,2]
[360851902,1747075537651,-500.0,0.00014897,2]
[360851903,1747075537677,-500.0,0.00014897,2]
[360851904,1747075537699,-627.00679863,0.00014897,2]
[360851905,1747075537724,-160.64904893,0.00014897,2]
[360851906,1747075537749,-203.88847533,0.00014897,2]
[360851907,1747075537772,-368.20906833,0.00014897,2]
[360851908,1747075537795,-174.356,0.00014897,2]
[360851909,1747075537973,-13121.40289194,0.00014898,3]
[360851910,1747075537998,-40899.98842926,0.00014898,2]
[360851911,1747075538019,-212.17074216,0.00014898,3]
[360851912,1747075538042,-948695.95516065,0.00014898,2]
[360851913,1747075633138,-288.328486,0.00013699,2]
[360851914,1747075633160,-300.0,0.00014349,2]
[360851915,1747075633182,-500.0,0.0001435,2]
[360851916,1747075633203,-500.0,0.0001435,2]
[360851917,1747075633226,-248.24724443,0.0001435,2]
[360851918,1747075633254,-500.0,0.0001435,2]
[360851919,1747075633282,-500.0,0.0001435,2]
[360851920,1747075633308,-500.0,0.0001435,2]
[360851921,1747075633333,-500.0,0.0001435,2]
[360851922,1747075633358,-500.0,0.0001435,2]
[360851923,1747075633382,-500.0,0.0001435,2]
[360851924,1747075633406,-500.0,0.0001435,2]
[360851925,1747075633429,-500.0,0.0001435,2]
[360851926,1747075633454,-500.0,0.0001435,2]
[360851927,1747075633479,-500.0,0.0001435,2]
[360851928,1747075633508,-500.0,0.0001435,2]
[360851929,1747075633536,-500.0,0.0001435,2]
[360851930,1747075633560,-430.0,0.0001435,2]
[360851931,1747075633585,-500.0,0.0001435,2]
[360851932,1747075633607,-500.0,0.0001435,2]
[360851933,1747075633631,-500.0,0.0001435,2]
[360851934,1747075633653,-505.12082163,0.00014351,2]
[360851935,1747075635100,-571.68442212,0.00014351,2]
[360852067,1747075832502,-1244.5201374,0.00013599,2]
[360852068,1747075832515,-1400.30391312,0.00013599,2]
[360852070,1747075832528,-20992.47984861,0.00013599,2]
[360852077,1747075832619,-393932.60642342,0.00013599,2]
[360852079,1747075832633,-47881.60597495,0.00013599,2]
[360852654,1747075838731,-80750.0,0.00013599,2]
[360852656,1747075838745,-6427.93887995,0.00013599,2]
[360852659,1747075838757,-8737.85900606,0.00013599,2]
[360852661,1747075838770,-12088.7502783,0.00013599,2]
[360852675,1747075838895,-267.08734275,0.00013599,2]
[360852677,1747075838909,-26754.46293733,0.00013599,2]
[360852879,1747075840801,-1820.36632354,0.00013599,2]
[360852882,1747075840813,-1010.6,0.00013599,2]
[360853181,1747075843870,-2402.52551055,0.00013499,2]
[360853183,1747075843880,-1804.34890695,0.00013599,2]
[360853319,1747075846860,-13141.00000002,0.00013599,2]
[360856149,1747076833100,-960.03791618,0.00012849,2]
[360856150,1747076841102,-277.0833087,0.00012849,2]
[360856151,1747076841153,-2606.15523672,0.00012849,2]
[360856152,1747076841186,-2954.73558035,0.00013104,2]
[360856167,1747076958121,-250.0,0.00012863,2]
[360856168,1747076958143,-500.0,0.00012999,2]
[360856169,1747076958168,-249.80524938,0.00012999,2]
[360856170,1747076958189,-270.0,0.00012999,2]
[360856171,1747076958211,-300.0,0.00012999,2]
[360856172,1747076958232,-27490.97569121,0.00013,2]
[360856173,1747076967062,-590.28308801,0.00013,2]
[360856174,1747076967085,-20647.13333725,0.00013104,2]
[360856179,1747076969096,-513.9159065,0.00013104,2]
[360856190,1747076972076,-660.85794195,0.00013104,2]
[360856252,1747077032969,-200.30416869,0.00012899,2]
[360856253,1747077032981,-123.35723395,0.00013104,2]
[360856254,1747077032991,-300.0,0.00013496,2]
[360856255,1747077033002,-156.0,0.00013496,2]
[360856256,1747077033012,-2897.73787201,0.00013498,13]
[360856258,1747077033025,-2965.47333553,0.00013499,2]
[360856260,1747077033036,-6515.35846519,0.00013499,2]
[360856262,1747077033047,-500.0,0.00013573,2]
[360856263,1747077033057,-500.0,0.00013573,2]
[360856264,1747077033068,-500.0,0.00013573,2]
[360856265,1747077033079,-533.8527811,0.00013573,2]
[360856266,1747077033089,-500.0,0.00013573,2]
[360856267,1747077033099,-500.0,0.00013573,2]
[360856268,1747077033109,-500.0,0.00013573,2]
[360856269,1747077033119,-500.0,0.00013573,2]
[360856270,1747077033130,-500.0,0.00013573,2]
[360856271,1747077033141,-500.0,0.00013573,2]
[360856272,1747077033150,-500.0,0.00013573,2]
[360856273,1747077033160,-159.28422115,0.00013573,2]
[360856274,1747077033171,-500.0,0.00013573,2]
[360856275,1747077033181,-196.95629721,0.00013573,2]
[360856276,1747077033191,-500.0,0.00013573,2]
[360856277,1747077033201,-500.0,0.00013573,2]
[360856278,1747077033219,-151.0,0.0001359,2]
[360856279,1747077033230,-152.0,0.00013597,2]
[360856280,1747077033241,-500.0,0.00013598,2]
[360856281,1747077033253,-500.0,0.00013598,2]
[360856282,1747077033263,-511.83452215,0.00013598,2]
[360856283,1747077033274,-500.0,0.00013598,2]
[360856284,1747077033285,-162.71467968,0.00013598,2]
[360856285,1747077033297,-500.0,0.00013598,2]
[360856286,1747077033307,-31714.3550487,0.00013599,2]
[360856292,1747077038669,-867.379751,0.00013599,2]
[360856293,1747077038680,-253.75,0.00013599,2]
[360856294,1747077038821,-1423.07621501,0.00013599,2]
[360856295,1747077038833,-294.78529435,0.00013599,2]
[360856627,1747077043907,-200.30416869,0.00012899,2]
[360856629,1747077043917,-20223.74895523,0.00013599,2]
[360856634,1747077043961,-9235.98249789,0.00013599,2]
[360856948,1747077047022,-12393.47704992,0.00013599,2]
[360856967,1747077047183,-20218.0,0.00013599,2]
[360860194,1747078025118,-300.0,0.00012534,2]
[360860195,1747078025144,-233.76944584,0.00012535,2]
[360860196,1747078033108,-417.78332644,0.00012535,2]
[360860197,1747078042100,-1247.89579161,0.00012535,2]
[360860198,1747078048129,-8839.94027778,0.00012535,2]
[360860215,1747078150083,-862.56422236,0.00012399,2]
[360860216,1747078151081,-273.04370204,0.00012399,2]
[360860217,1747078151102,-3451.36944783,0.00012535,2]
[360860218,1747078151121,-698.5794784,0.00012597,2]
[360860219,1747078151139,-229.9041225,0.00012612,2]
[360860220,1747078151160,-300.0,0.00012887,2]
[360860221,1747078151180,-3781.89732367,0.00012888,2]
[360860222,1747078158096,-2529.41406157,0.00012888,2]
[360861588,1747078246043,-46.4203696,0.00012888,2]
[360861590,1747078246054,-133.10930709,0.00012888,2]
[360861592,1747078246063,-215.38,0.00013327,2]
[360861594,1747078246072,-501.51069326,0.00013463,2]
[360863123,1747079184210,-218.78489798,0.00011699,2]
[360863124,1747079193804,-154.10567246,0.00011699,2]
[360863125,1747079208579,-181.19864509,0.00011699,2]
[360863126,1747079223690,-181.0,0.00011699,2]
[360863127,1747079234147,-799.74055228,0.00011699,2]
[360863128,1747079240385,-208.71843324,0.00011699,2]
[360863129,1747079241778,-1154.0,0.00011699,2]
[360863130,1747079242099,-203.20110415,0.00011699,2]
[360863131,1747079242121,-1619.16342622,0.00012116,2]
[360863132,1747079242144,-4979.5858726,0.00012239,2]
[360863133,1747079242166,-300.0,0.00012447,2]
[360863134,1747079242191,-1288.3356158,0.00012448,2]
[360863135,1747079242212,-1200.0,0.00012497,2]
[360863136,1747079242234,-300.0,0.00012497,2]
[360863137,1747079242256,-284.69353148,0.00012498,2]
[360863138,1747079347080,-300.0,0.00012496,2]
[360863139,1747079347102,-500.0,0.00012497,2]
[360863140,1747079347123,-500.0,0.00012497,2]
[360863141,1747079347145,-500.0,0.00012497,2]
[360863142,1747079347169,-500.0,0.00012497,2]
[360863143,1747079347191,-500.0,0.00012497,2]
[360863144,1747079347214,-500.0,0.00012497,2]
[360863145,1747079347235,-342.93416526,0.00012497,2]
[360863146,1747079347256,-500.0,0.00012497,2]
[360863147,1747079347278,-500.0,0.00012497,2]
[360863148,1747079347300,-500.0,0.00012497,2]
[360863149,1747079347319,-500.0,0.00012497,2]
[360863150,1747079347341,-500.0,0.00012497,2]
[360863151,1747079347361,-500.0,0.00012497,2]
[360863152,1747079347382,-500.0,0.00012497,2]
[360863153,1747079347404,-500.0,0.00012497,2]
[360863154,1747079347427,-500.0,0.00012497,2]
[360863155,1747079347450,-500.0,0.00012497,2]
[360863156,1747079347470,-500.0,0.00012497,2]
[360863157,1747079347492,-572.47431941,0.00012497,2]
[360863158,1747079347514,-500.0,0.00012497,2]
[360863159,1747079347538,-500.0,0.00012497,2]
[360863160,1747079347560,-500.0,0.00012497,2]
[360863161,1747079347584,-500.0,0.00012497,2]
[360863162,1747079347607,-500.0,0.00012497,2]
[360863163,1747079347631,-500.0,0.00012497,2]
[360863164,1747079347654,-560.69510521,0.00012497,2]
[360863165,1747079347677,-500.0,0.00012497,2]
[360863166,1747079347701,-500.0,0.00012497,2]
[360863167,1747079347725,-500.0,0.00012497,2]
[360863168,1747079347748,-500.0,0.00012497,2]
[360863169,1747079347775,-588.3263213,0.00012497,2]
[360863170,1747079347798,-500.0,0.00012497,2]
[360863171,1747079347821,-500.0,0.00012497,2]
[360863172,1747079347845,-500.0,0.00012497,2]
[360863173,1747079347873,-500.0,0.00012497,2]
[360863174,1747079347898,-500.0,0.00012497,2]
[360863175,1747079347919,-500.0,0.00012497,2]
[360863176,1747079347941,-500.0,0.00012497,2]
[360863177,1747079347963,-7438.04111403,0.00012497,2]
[360863178,1747079347984,-15.30646852,0.00012498,2]
[360863179,1747079348005,-300.0,0.00012498,2]
[360863180,1747079348027,-300.0,0.00012498,2]
[360863181,1747079348047,-2775.4349348,0.00012499,2]
[360863182,1747079348067,-226.5882376,0.00012576,2]
[360863183,1747079348090,-2909.99210166,0.00012788,2]
[360863218,1747079431977,-174.71269952,0.00012788,2]
[360863220,1747079431987,-362.9868952,0.00013241,2]
[360863222,1747079431997,-157.9005868,0.00013378,2]
[360863224,1747079432009,-151.0,0.00013452,2]
[360863226,1747079432019,-168.0,0.00013461,2]
[360863228,1747079432029,-300.0,0.00013461,2]
[360863230,1747079432039,-1093.0,0.00013461,2]
[360863232,1747079432050,-180.0,0.00013461,2]
[360863234,1747079432060,-500.0,0.00013462,2]
[360863236,1747079432069,-621.08907333,0.00013462,2]
[360863238,1747079432080,-500.0,0.00013462,2]
[360863240,1747079432090,-500.0,0.00013462,2]
[360863243,1747079432101,-500.0,0.00013462,2]
[360863246,1747079432111,-598.07116859,0.00013462,2]
[360863249,1747079432122,-163.88124658,0.00013462,2]
[360863252,1747079432132,-172.83414546,0.00013463,2]
[360863255,1747079432143,-8334.29931079,0.00013463,2]
[360863257,1747079432153,-543.0,0.00013463,2]
[360863259,1747079432162,-543.0,0.00013463,2]
[360863260,1747079432172,-543.0,0.00013463,2]
[360863261,1747079432182,-543.0,0.00013463,2]
[360863262,1747079432191,-543.0,0.00013463,2]
[360863263,1747079432201,-543.0,0.00013463,2]
[360863264,1747079432211,-543.0,0.00013463,2]
[360863265,1747079432221,-543.0,0.00013463,2]
[360863266,1747079432231,-543.0,0.00013463,2]
[360863267,1747079432240,-543.0,0.00013463,2]
[360863268,1747079432250,-543.0,0.00013463,2]
[360863269,1747079432259,-543.0,0.00013463,2]
[360863270,1747079432269,-543.0,0.00013463,2]
[360863271,1747079432278,-543.0,0.00013463,2]
[360863272,1747079432289,-543.0,0.00013463,2]
[360863273,1747079432298,-543.0,0.00013463,2]
[360863274,1747079432308,-543.0,0.00013463,2]
[360863275,1747079432318,-543.0,0.00013463,2]
[360863276,1747079432327,-543.0,0.00013463,2]
[360863277,1747079432337,-572.63135838,0.00013463,2]
[360863278,1747079432348,-543.0,0.00013463,2]
[360863279,1747079432358,-543.0,0.00013463,2]
[360863280,1747079432368,-543.0,0.00013463,2]
[360863281,1747079432378,-543.0,0.00013463,2]
[360863282,1747079432388,-320.0,0.00013463,2]
[360863283,1747079432398,-242.265,0.000135,2]
[360863284,1747079432408,-153.0,0.000135,2]
[360863285,1747079432418,-488.6004001,0.000135,2]
[360863286,1747079432428,-157.9005868,0.000135,2]
[360863287,1747079432438,-308.4835268,0.000135,2]
[360863288,1747079432447,-398.8562338,0.000135,2]
[360863289,1747079432457,-1153.7715431,0.000135,2]
[360863290,1747079432467,-3387.40314966,0.000135,2]
[360863291,1747079432481,-157.9005868,0.000135,2]
[360863292,1747079432492,-362.9868952,0.000135,2]
[360863293,1747079432502,-157.9005868,0.000135,2]
[360863294,1747079432513,-175.678528,0.000135,2]
[360863295,1747079432746,-362.9868952,0.000135,2]
[360863296,1747079432757,-500.0,0.000135,2]
[360863297,1747079432768,-369.94276848,0.00013573,2]
[360863298,1747079432778,-614.69478573,0.00013573,2]
[360863299,1747079432788,-500.0,0.00013573,2]
[360863300,1747079432798,-503.81711862,0.00013573,2]
[360863301,1747079432809,-500.0,0.00013573,2]
[360863302,1747079432819,-440.99337418,0.00013573,2]
[360863303,1747079432828,-500.0,0.00013573,2]
[360863304,1747079432839,-500.0,0.00013573,2]
[360863305,1747079432851,-500.0,0.00013573,2]
[360863306,1747079432863,-500.0,0.00013573,2]
[360863307,1747079432874,-500.0,0.00013573,2]
[360863308,1747079432885,-500.0,0.00013573,2]
[360863309,1747079432896,-500.0,0.00013573,2]
[360863310,1747079432906,-500.0,0.00013573,2]
[360863311,1747079432916,-500.0,0.00013573,2]
[360863312,1747079432926,-500.0,0.00013573,2]
[360863313,1747079432936,-500.0,0.00013573,2]
[360863314,1747079432946,-500.0,0.00013573,2]
[360863315,1747079432956,-500.0,0.00013573,2]
[360863316,1747079432965,-501.08252237,0.00013573,2]
[360863317,1747079432975,-500.0,0.00013573,2]
[360863318,1747079432984,-500.82779148,0.00013573,2]
[360863319,1747079432995,-443.13375754,0.00013573,2]
[360863320,1747079433006,-500.0,0.00013573,2]
[360863321,1747079433016,-501.0786614,0.00013573,2]
[360863322,1747079433026,-469.70616896,0.00013573,2]
[360863323,1747079433037,-500.0,0.00013573,2]
[360863324,1747079433047,-500.41062587,0.00013573,2]
[360863325,1747079433057,-500.0,0.00013573,2]
[360863326,1747079433067,-500.0,0.00013573,2]
[360863327,1747079433077,-504.55632581,0.00013573,2]
[360863328,1747079433087,-502.70056271,0.00013573,2]
[360863329,1747079433099,-500.0,0.00013573,2]
[360863330,1747079433109,-500.0,0.00013573,2]
[360863331,1747079433119,-504.0622359,0.00013573,2]
[360863332,1747079433130,-500.0,0.00013573,2]
[360863333,1747079433141,-500.0,0.00013573,2]
[360863334,1747079433151,-626.29387028,0.00013573,2]
[360863335,1747079433162,-500.0,0.00013573,2]
[360863336,1747079433171,-500.0,0.00013573,2]
[360863337,1747079433181,-458.13958036,0.00013573,2]
[360863338,1747079433191,-502.63684409,0.00013573,2]
[360863339,1747079433201,-500.0,0.00013573,2]
[360863340,1747079433211,-500.0,0.00013573,2]
[360863341,1747079433223,-500.0,0.00013573,2]
[360863342,1747079433233,-500.0,0.00013573,2]
[360863343,1747079433243,-500.0,0.00013573,2]
[360863344,1747079433253,-500.0,0.00013573,2]
[360863345,1747079433263,-500.0,0.00013573,2]
[360863346,1747079433274,-500.0,0.00013573,2]
[360863347,1747079433284,-500.0,0.00013573,2]
[360863348,1747079433295,-152.0,0.00013593,2]
[360863349,1747079433306,-32281.91713241,0.00013599,2]
[360863350,1747079433329,-699.856,0.00013599,2]
[360863351,1747079433341,-2897.63428113,0.00013599,2]
[360863352,1747079433360,-13148.80703768,0.00013599,2]
[360863353,1747079433373,-1042495.41328805,0.00013599,2]
[360863354,1747079433385,-384943.26215965,0.00013599,2]
[360863403,1747079438000,-8687.16628213,0.00013599,2]
[360863407,1747079438029,-844.19082374,0.00013599,2]
[360863409,1747079438042,-5844.14774415,0.00013599,2]
[360863417,1747079438095,-7249.0523362,0.00013599,2]
[360863419,1747079438189,-88.86006136,0.00013599,2]
[360863478,1747079440211,-173.68154185,0.000135,2]
[360863481,1747079440222,-660.72290171,0.00013599,2]
[360863491,1747079440324,-0.00844339,0.00013599,2]
[360863494,1747079440346,-580.82143104,0.00013599,2]
[360863496,1747079440360,-466.82199935,0.00013599,2]
[360863499,1747079440372,-835.17800065,0.00013599,2]
[360863576,1747079443171,-4924.79999392,0.00013599,2]
[360863580,1747079443204,-28.0914312,0.00013599,2]
[360863583,1747079443216,-3116.89600137,0.00013599,2]
[360863646,1747079446126,-1518.362067,0.00013599,2]
[360863658,1747079446232,-1963.13662808,0.00013599,2]
[360863998,1747080336255,191.788572,0.00012228,120]
[360863999,1747080434135,-4761.93199041,0.00011947,2]
[360864000,1747080434158,-1076.8125095,0.0001219,2]
[360864001,1747080434182,-191.788572,0.00012228,2]
[360864002,1747080434202,-297.4388508,0.00012403,2]
[360864003,1747080434223,-181.0,0.00012532,2]
[360864004,1747080434246,-125.50763484,0.00012571,2]
[360864005,1747080547081,-398.06800959,0.00012446,2]
[360864006,1747080547109,-318.12417107,0.000125,2]
[360864007,1747080547131,-5956.7595638,0.00012572,2]
[360864008,1747080547153,-481.60037176,0.00012584,2]
[360864564,1747080638198,-151.0,0.00012564,2]
[360864565,1747080638207,-130.78806303,0.00012584,2]
[360864574,1747080638771,-79.48244381,0.00012584,2]
[360864576,1747080638781,-2000.0,0.00013228,2]
[360864578,1747080638790,-1168.1734054,0.000133,2]
[360864580,1747080638800,-362.9868952,0.000133,2]
[360864581,1747080638810,-0.68009577,0.000133,2]
[360864598,1747080643374,-362.30679943,0.000133,2]
[360864599,1747080643394,-300.0,0.00013376,2]
[360864600,1747080643406,-500.0,0.00013377,2]
[360864601,1747080643416,-500.0,0.00013377,2]
[360864602,1747080643426,-555.83047993,0.00013377,2]
[360864603,1747080643436,-173.41056725,0.00013377,2]
[360864604,1747080643447,-500.0,0.00013377,2]
[360864605,1747080643457,-633.65735657,0.00013377,2]
[360864606,1747080643467,-153.0,0.00013378,2]
[360864607,1747080643478,-153.0,0.00013378,2]
[360864609,1747080643488,-157.9005868,0.00013378,2]
[360864611,1747080643499,-313.6685879,0.00013378,2]
[360864613,1747080643509,-153.0,0.00013378,2]
[360864615,1747080643519,-153.0,0.00013378,2]
[360864619,1747080643529,-362.9868952,0.00013441,2]
[360864622,1747080643539,-300.0,0.0001345,2]
[360864625,1747080643550,-423.48596624,0.00013499,2]
[360864637,1747081304493,344.28,8.02e-05,2]
[360864647,1747081629094,-1389.63024442,0.00012537,2]
[360864648,1747081633113,-1216.52499228,0.00012537,2]
[360864649,1747081633135,-3615.5935223,0.00012576,2]
[360864650,1747081633154,-266.0203103,0.00012589,2]
[360864651,1747081633175,-300.0,0.00013496,2]
[360864652,1747081633198,-1200.0,0.00013497,2]
[360864653,1747081633396,-300.0,0.00013497,2]
[360864654,1747081633419,-619.94290558,0.00013497,2]
[360864655,1747081633440,-434.76380619,0.00013497,2]
[360864656,1747081633464,-500.0,0.00013497,2]
[360864657,1747081633486,-500.0,0.00013497,2]
[360864658,1747081633509,-500.0,0.00013497,2]
[360864659,1747081633531,-500.0,0.00013497,2]
[360864660,1747081633554,-483.70249638,0.00013497,2]
[360864661,1747081633576,-223.00761925,0.00013497,2]
[360864662,1747081633597,-9048.65513051,0.00013498,2]
[360864663,1747081633617,-501.04231144,0.00013499,2]
[360864664,1747081633637,-3508.62263911,0.00013499,2]
[360864665,1747081633656,-153.0,0.000135,2]
[360864666,1747081633677,-153.0,0.000135,2]
[360864667,1747081633697,-151.0,0.00013564,2]
[360864668,1747081633718,-227.405,0.0001357,2]
[360864669,1747081633738,-502.63799747,0.00013573,2]
[360864670,1747081633759,-500.0,0.00013573,2]
[360864671,1747081633779,-500.0,0.00013573,2]
[360864672,1747081633800,-348.92904695,0.00013573,2]
[360864673,1747081633820,-434.62451462,0.00013573,2]
[360864720,1747081832348,-300.0,0.00013572,2]
[360864722,1747081832357,-65.37548538,0.00013573,2]
[360864723,1747081832367,-361.73248324,0.00013573,2]
[360864725,1747081832379,-227.99768449,0.00013573,2]
[360864727,1747081832388,-138.5318062,0.00013573,2]
[360864729,1747081832399,-262.60356982,0.00013573,2]
[360864736,1747081832478,-98.86462398,0.00013573,2]
[360864737,1747081832487,-500.0,0.00013573,2]
[360864738,1747081832496,-500.0,0.00013573,2]
[360864739,1747081832512,-500.0,0.00013573,2]
[360864740,1747081832522,-500.0,0.00013573,2]
[360864741,1747081832531,-500.0,0.00013573,2]
[360864743,1747081832541,-500.0,0.00013573,2]
[360864745,1747081832550,-500.0,0.00013573,2]
[360864747,1747081832559,-200.6631062,0.00013573,2]
[360864749,1747081832569,-500.0,0.00013573,2]
[360864751,1747081832578,-500.0,0.00013573,2]
[360864753,1747081832588,-500.0,0.00013573,2]
[360864755,1747081832598,-500.0,0.00013598,2]
[360864757,1747081832607,-448.43284687,0.00013598,2]
[360864759,1747081832617,-500.0,0.00013598,2]
[360864761,1747081832627,-500.0,0.00013598,2]
[360864763,1747081832637,-539.39877643,0.00013598,2]
[360864765,1747081832646,-155.83256715,0.00013598,2]
[360864767,1747081832656,-9739.77860063,0.00013599,2]
[360864771,1747081832684,-6080.41783178,0.00013599,2]
[360864772,1747081832696,-5104.21237381,0.00013599,2]
[360864824,1747081838305,-7880.61719588,0.00013599,2]
[360864825,1747081838318,-403.19028049,0.00013599,2]
[360864826,1747081838330,-3698.36895649,0.00013599,2]
[360864827,1747081838341,-7032.61754214,0.00013599,2]
[360864828,1747081838353,-3681.66136956,0.00013599,2]
[360864829,1747081838365,-5435.5520406,0.00013599,2]
[360864830,1747081838421,-34026.55960272,0.00013599,2]
[360864855,1747081840611,-2555.0,0.00013599,2]
[360864857,1747081840624,-3097.05725676,0.00013599,2]
[360864863,1747081840671,-29044.23323007,0.00013599,2]
[360864921,1747081844021,-5215.18501736,0.00013599,2]
[360864922,1747081844285,-659.2907214,0.00013599,2]
[360864940,1747081846532,-23432.22651523,0.00013599,2]
[360864942,1747081846544,-2155.49666894,0.00013599,2]
[360865027,1747082834330,-1154.0,0.00012555,2]
[360865028,1747082834352,-1514.84722923,0.00012568,2]
[360865029,1747082841122,-149.43606167,0.00012568,2]
[360865030,1747082841145,-216.577,0.00013327,2]
[360865031,1747082841166,-529.82786991,0.00013399,2]
[360865032,1747082841186,-169.12448499,0.0001347,2]
[360865033,1747082841208,-300.0,0.00013498,2]
[360865034,1747082841229,-308.37003471,0.00013499,2]
[360865035,1747082841250,-742.10022857,0.00013499,2]
[360865079,1747083032602,-151.0,0.00013425,2]
[360865080,1747083032612,-151.0,0.00013425,2]
[360865081,1747083032622,-156.98674442,0.00013425,2]
[360865082,1747083032633,-328.43834136,0.00013425,2]
[360865083,1747083032642,-1200.0,0.00013498,2]
[360865085,1747083032652,-300.0,0.00013498,2]
[360865087,1747083032662,-2712.26823433,0.00013499,2]
[360865090,1747083032672,-2171.62,0.00013499,2]
[360865092,1747083032682,-300.0,0.00013559,2]
[360865094,1747083032692,-300.0,0.00013559,2]
[360865096,1747083032702,-300.0,0.00013559,2]
[360865097,1747083032712,-677.66351879,0.0001356,2]
[360865099,1747083032724,-1610.15648121,0.0001356,2]
[360865101,1747083032736,-500.0,0.00013568,2]
[360865104,1747083032746,-500.0,0.00013568,2]
[360865106,1747083032756,-500.0,0.00013568,2]
[360865107,1747083032766,-500.0,0.00013568,2]
[360865108,1747083032777,-507.07681965,0.00013568,2]
[360865109,1747083032787,-500.0,0.00013568,2]
[360865110,1747083032796,-152.4554076,0.00013568,2]
[360865111,1747083032806,-500.0,0.00013568,2]
[360865112,1747083032816,-500.0,0.00013568,2]
[360865113,1747083032827,-500.0,0.00013568,2]
[360865114,1747083032839,-500.0,0.00013568,2]
[360865115,1747083032849,-562.47946153,0.00013568,2]
[360865116,1747083032859,-500.0,0.00013568,2]
[360865117,1747083032870,-500.0,0.00013568,2]
[360865118,1747083032879,-500.0,0.00013568,2]
[360865119,1747083032888,-500.0,0.00013568,2]
[360865120,1747083032897,-500.0,0.00013568,2]
[360865121,1747083032908,-500.0,0.00013568,2]
[360865122,1747083032918,-500.0,0.00013568,2]
[360865123,1747083032927,-500.0,0.00013568,2]
[360865124,1747083032937,-500.0,0.00013568,2]
[360865125,1747083032947,-500.0,0.00013568,2]
[360865126,1747083032956,-500.0,0.00013568,2]
[360865127,1747083032966,-500.0,0.00013568,2]
[360865128,1747083032975,-500.0,0.00013568,2]
[360865129,1747083032987,-500.0,0.00013568,2]
[360865130,1747083032997,-500.0,0.00013568,2]
[360865131,1747083033006,-500.0,0.00013568,2]
[360865132,1747083033015,-500.0,0.00013568,2]
[360865133,1747083033024,-500.0,0.00013568,2]